bitfinex/quotes_BTCUSD_20241010
["timestamp","ask_amount","ask_price","bid_price","bid_amount"]
[1728602653033,0.000816,60311.0,60310.0,0.35800303]
[1728602654351,0.000816,60311.0,60310.0,0.18869373]
[1728602654578,0.000816,60311.0,60310.0,0.173228]
[1728602664133,0.12582007,60311.0,60310.0,0.024]
[1728602664395,0.30102007,60311.0,60310.0,0.024]
[1728602664626,0.18680112,60311.0,60310.0,0.024]
[1728602665780,0.18680112,60311.0,60310.0,0.014]
[1728602666031,0.18680112,60311.0,60308.0,0.149233]
[1728602666272,0.18680112,60311.0,60310.0,0.014]
[1728602667044,0.18680112,60311.0,60310.0,0.01]
[1728602667290,0.31180519,60311.0,60310.0,0.5]
[1728602668052,0.46603119,60311.0,60310.0,0.51]
[1728602668328,0.34102712,60311.0,60310.0,0.51]
[1728602668600,0.51033642,60311.0,60310.0,0.51]
[1728602668854,0.79390748,60311.0,60310.0,0.01]
[1728602669103,0.79390748,60311.0,60310.0,0.014]
[1728602669604,0.79390748,60311.0,60310.0,0.01]
[1728602669838,0.154236,60307.0,60306.0,0.001632]
[1728602670105,0.8987644,60307.0,60306.0,0.001632]
[1728602670340,0.90952318,60307.0,60306.0,0.001632]
[1728602671199,0.90952318,60307.0,60306.0,0.002632]
[1728602671421,0.62650815,60307.0,60306.0,0.002632]
[1728602672336,0.70104786,60307.0,60306.0,0.002632]
[1728602673013,0.70204786,60307.0,60306.0,0.002632]
[1728602674972,0.81290341,60307.0,60306.0,0.002632]
[1728602675190,0.93715518,60307.0,60306.0,0.002632]
[1728602675481,0.81290341,60307.0,60306.0,0.002632]
[1728602675701,0.93715518,60307.0,60306.0,0.002632]
[1728602675947,1.10659788,60307.0,60306.0,0.002632]
[1728602676387,0.98234611,60307.0,60306.0,0.002632]
[1728602676627,1.35460195,60307.0,60306.0,0.002632]
[1728602676858,1.35443194,60307.0,60306.0,0.002632]
[1728602677294,1.23027718,60307.0,60306.0,0.002632]
[1728602677521,1.10527311,60307.0,60306.0,0.002632]
[1728602677748,1.10327311,60307.0,60306.0,0.002632]
[1728602678409,1.20255409,60307.0,60306.0,0.002632]
[1728602678620,1.20455409,60307.0,60306.0,0.002632]
[1728602678831,1.20255409,60307.0,60306.0,0.002632]
[1728602679044,1.20455409,60307.0,60306.0,0.002632]
[1728602680426,1.10527311,60307.0,60306.0,0.002632]
[1728602680656,0.005,60295.0,60292.0,0.23627308]
[1728602681295,0.01073262,60294.0,60292.0,0.23627308]
[1728602681514,0.01073262,60294.0,60291.0,0.149275]
[1728602681966,0.01073262,60294.0,60292.0,0.011]
[1728602682192,0.01073262,60294.0,60292.0,0.025]
[1728602682401,0.01073262,60294.0,60291.0,0.149275]
[1728602682611,0.01073262,60294.0,60291.0,0.175275]
[1728602683046,0.01073262,60294.0,60291.0,0.161275]
[1728602683307,0.01073262,60294.0,60292.0,0.014]
[1728602683552,0.01073262,60294.0,60291.0,0.149275]
[1728602683762,0.01073262,60294.0,60291.0,0.163275]
[1728602684413,0.01073262,60294.0,60292.0,0.011]
[1728602684633,0.01073262,60294.0,60292.0,0.160273]
[1728602685056,0.01073262,60294.0,60292.0,0.149273]
[1728602685750,0.01073262,60294.0,60293.0,0.149271]
[1728602686190,0.27425807,60300.0,60293.0,0.149271]
[1728602686191,0.005,60296.0,60293.0,0.149271]
[1728602686413,0.01073262,60294.0,60292.0,0.163271]
[1728602686631,0.005,60295.0,60292.0,0.174271]
[1728602686854,0.01073084,60293.0,60292.0,0.011]
[1728602687075,0.005,60295.0,60292.0,0.160273]
[1728602687547,0.01073262,60294.0,60292.0,0.160273]
[1728602687792,0.01073262,60294.0,60293.0,0.240771]
[1728602688220,0.005,60300.0,60298.0,0.149258]
[1728602688666,0.27424607,60305.0,60298.0,0.149257]
[1728602688667,0.005,60301.0,60298.0,0.149257]
[1728602688895,0.005,60301.0,60299.0,0.149255]
[1728602689374,0.005,60301.0,60297.0,0.298521]
[1728602689608,0.005,60301.0,60298.0,0.149258]
[1728602689841,0.005,60301.0,60298.0,0.159258]
[1728602690073,0.005,60301.0,60298.0,0.149258]
[1728602690538,0.01074375,60300.0,60299.0,0.009]
[1728602691431,0.01074375,60300.0,60299.0,0.012]
[1728602691661,0.01074375,60300.0,60299.0,0.003]
[1728602692135,0.01074375,60300.0,60297.0,0.14926]
[1728602692571,0.01074375,60300.0,60299.0,0.012]
[1728602693003,0.01074375,60300.0,60299.0,0.009]
[1728602693228,0.01074375,60300.0,60297.0,0.14926]
[1728602693478,0.01074375,60300.0,60297.0,0.15426]
[1728602693706,0.01155975,60300.0,60297.0,0.16526]
[1728602694632,0.01155975,60300.0,60297.0,0.16026]
[1728602694849,0.01155975,60300.0,60299.0,0.003]
[1728602695309,0.01155975,60300.0,60297.0,0.16026]
[1728602695545,0.01155975,60300.0,60297.0,0.14926]
[1728602695769,0.01155975,60300.0,60297.0,0.15426]
[1728602696038,0.01155975,60300.0,60299.0,0.009]
[1728602696259,0.01155975,60300.0,60297.0,0.0051]
[1728602696522,0.01155975,60300.0,60297.0,0.0161]
[1728602697676,0.01155975,60300.0,60297.0,0.0111]
[1728602697896,0.01155975,60300.0,60299.0,0.003]
[1728602698416,0.01155975,60300.0,60297.0,0.0111]
[1728602698684,0.01155975,60300.0,60297.0,0.0161]
[1728602698914,0.01155975,60300.0,60297.0,0.0051]
[1728602699143,0.01155975,60300.0,60299.0,0.009]
[1728602699363,0.01155975,60300.0,60297.0,0.0001]
[1728602699608,0.01155975,60300.0,60299.0,0.003]
[1728602700321,0.01155975,60300.0,60299.0,0.012]
[1728602700550,0.01155975,60300.0,60299.0,0.338756]
[1728602701019,0.000816,60300.0,60299.0,0.335756]
[1728602701943,0.000816,60300.0,60299.0,0.338756]
[1728602702846,0.000816,60300.0,60299.0,0.5080653]
[1728602703070,0.000816,60300.0,60299.0,0.63306937]
[1728602703735,0.000816,60300.0,60299.0,0.62406937]
[1728602703986,0.000816,60300.0,60299.0,0.63306937]
[1728602704430,0.000816,60300.0,60299.0,0.63906937]
[1728602704868,0.000816,60300.0,60299.0,0.63306937]
[1728602705120,0.000816,60300.0,60299.0,0.63506937]
[1728602705529,0.000816,60300.0,60299.0,0.64906937]
[1728602705777,0.000816,60300.0,60299.0,0.63506937]
[1728602706004,0.000816,60300.0,60299.0,0.64906937]
[1728602711253,0.000816,60300.0,60299.0,1.14906937]
[1728602712879,0.000816,60300.0,60299.0,1.24906937]
[1728602714230,0.000816,60300.0,60299.0,1.26176357]
[1728602716797,0.000816,60300.0,60299.0,1.38676764]
[1728602717058,0.000816,60300.0,60299.0,1.43820538]
[1728602717290,0.000816,60300.0,60299.0,1.38876764]
[1728602717523,0.000816,60300.0,60299.0,1.26376357]
[1728602717739,0.000816,60300.0,60299.0,1.23576357]
[1728602717969,0.000816,60300.0,60299.0,1.24976357]
[1728602718625,0.000816,60300.0,60299.0,1.26376357]
[1728602719299,0.000816,60300.0,60299.0,1.27276357]
[1728602719522,0.000816,60300.0,60299.0,1.28676357]
[1728602719758,0.000816,60300.0,60299.0,1.1597595]
[1728602719975,0.000816,60300.0,60299.0,1.40976764]
[1728602724313,0.000816,60300.0,60299.0,1.41640064]
[1728602724748,0.000816,60311.0,60310.0,0.28038055]
[1728602724957,0.000816,60311.0,60310.0,0.44968985]
[1728602725171,0.01159521,60311.0,60310.0,0.44968985]
[1728602725406,0.000816,60311.0,60310.0,0.44968985]
[1728602726042,0.000816,60311.0,60310.0,0.46368985]
[1728602727160,0.000816,60311.0,60310.0,0.97768985]
[1728602732061,0.000816,60311.0,60310.0,1.22743594]
[1728602732278,0.000816,60311.0,60310.0,1.14538985]
[1728602744279,0.000816,60311.0,60310.0,1.27039392]
[1728602744763,0.000816,60311.0,60310.0,1.37039392]
[1728602746354,0.000816,60311.0,60310.0,1.24538985]
[1728602750388,0.000816,60311.0,60310.0,1.15448985]
[1728602751288,0.000816,60311.0,60310.0,1.16998215]
[1728602753400,0.000816,60311.0,60310.0,1.06998215]
[1728602753842,0.000816,60311.0,60310.0,0.92948578]
[1728602754067,0.000816,60311.0,60310.0,0.94497812]
[1728602754294,0.000816,60311.0,60310.0,0.86817812]
[1728602754514,0.000816,60311.0,60310.0,0.69886882]
[1728602758529,0.000816,60311.0,60310.0,0.69887279]
[1728602759649,0.177516,60311.0,60310.0,0.54964479]
[1728602759888,0.30752007,60311.0,60310.0,0.53414848]
[1728602760104,0.31722606,60311.0,60310.0,0.53414848]
[1728602760331,0.36696242,60311.0,60310.0,0.52014848]
[1728602760576,0.36696242,60311.0,60310.0,0.50614848]
[1728602760807,0.24195835,60311.0,60310.0,0.52914848]
[1728602761043,0.24195835,60311.0,60310.0,0.51514848]
[1728602761494,0.24195835,60311.0,60310.0,0.52314848]
[1728602761495,0.19222199,60311.0,60310.0,0.52314848]
[1728602761932,0.19222199,60311.0,60310.0,0.51414848]
[1728602762149,0.19222199,60311.0,60310.0,0.51614848]
[1728602766796,0.34144799,60311.0,60310.0,0.51614848]
[1728602767014,0.41602369,60311.0,60310.0,0.51614848]
[1728602767468,0.41598238,60311.0,60310.0,0.51614848]
[1728602768596,0.34344799,60311.0,60310.0,0.51614848]
[1728602768818,0.34144799,60311.0,60310.0,0.51614848]
[1728602769724,0.72641265,60311.0,60310.0,0.51614848]
[1728602769948,0.67875775,60311.0,60310.0,0.01614848]
[1728602770194,0.96144434,60311.0,60310.0,0.01614848]
[1728602770621,0.96135103,60311.0,60310.0,0.00814848]
[1728602770871,0.96135103,60311.0,60310.0,0.00614848]
[1728602771107,0.96135103,60311.0,60310.0,0.01314848]
[1728602771328,0.96135103,60311.0,60310.0,0.00714848]
[1728602771546,0.86306515,60311.0,60310.0,0.00714848]
[1728602771761,0.86306515,60311.0,60310.0,0.00614848]
[1728602771968,0.86406515,60311.0,60310.0,0.00714848]
[1728602772299,0.86406515,60311.0,60310.0,0.02374848]
[1728602772748,0.75518407,60311.0,60310.0,0.02374848]
[1728602773583,0.76733154,60311.0,60310.0,0.02374848]
[1728602774475,0.89033154,60311.0,60310.0,0.02374848]
[1728602774713,0.52924114,60308.0,60307.0,0.001632]
[1728602774941,0.86855044,60308.0,60307.0,0.001632]
[1728602775150,1.06131615,60308.0,60307.0,0.001632]
[1728602775366,1.18554014,60308.0,60307.0,0.001632]
[1728602775589,1.23601615,60308.0,60307.0,0.001632]
[1728602775839,0.57466207,60298.0,60297.0,0.0001]
[1728602776104,0.81835629,60298.0,60297.0,0.0001]
[1728602776310,0.93668544,60298.0,60297.0,0.0001]
[1728602776537,0.82796584,60298.0,60297.0,0.0001]
[1728602776746,0.99740863,60298.0,60297.0,0.0001]
[1728602777383,0.92306651,60298.0,60297.0,0.0001]
[1728602777604,0.97260185,60298.0,60297.0,0.0001]
[1728602778024,0.97960185,60298.0,60297.0,0.0011]
[1728602778236,0.98960185,60298.0,60297.0,0.0021]
[1728602778448,0.94006651,60298.0,60297.0,0.0021]
[1728602779550,0.81506244,60298.0,60297.0,0.0021]
[1728602779996,0.82747814,60298.0,60297.0,0.0021]
[1728602780216,0.81306244,60298.0,60297.0,0.0021]
[1728602780429,0.94006651,60298.0,60297.0,0.0021]
[1728602785780,0.52927914,60293.0,60289.0,0.001632]
[1728602786016,0.87158844,60293.0,60290.0,0.24974609]
[1728602786245,0.88121031,60293.0,60290.0,0.24974609]
[1728602786682,0.82166813,60293.0,60290.0,0.24974609]
[1728602787111,0.82866813,60293.0,60292.0,0.002632]
[1728602787372,0.99711083,60293.0,60292.0,0.002632]
[1728602787606,0.99611083,60293.0,60292.0,0.002632]
[1728602787839,1.00511083,60293.0,60292.0,0.003632]
[1728602790890,1.17981083,60293.0,60292.0,0.003632]
[1728602793193,1.00511083,60293.0,60292.0,0.003632]
[1728602795736,1.17981083,60293.0,60292.0,0.003632]
[1728602800457,1.37527679,60293.0,60292.0,0.003632]
[1728602800675,1.18481083,60293.0,60292.0,0.003632]
[1728602800893,1.37527679,60293.0,60292.0,0.003632]
[1728602801390,1.18481083,60293.0,60292.0,0.003632]
[1728602802072,0.156278,60290.0,60289.0,0.001632]
[1728602802294,0.156278,60290.0,60286.0,0.001632]
[1728602802295,0.93411692,60287.0,60286.0,0.001632]
[1728602802511,1.10342622,60287.0,60286.0,0.001632]
[1728602802699,0.156305,60279.0,60271.0,0.1719]
[1728602802952,0.73828026,60279.0,60268.0,0.24974609]
[1728602803423,0.74786126,60279.0,60268.0,0.24974609]
[1728602803631,0.92256126,60279.0,60268.0,0.24974609]
[1728602803866,0.92456126,60279.0,60268.0,0.24974609]
[1728602804092,1.05945958,60279.0,60268.0,0.24974609]
[1728602804309,1.05745958,60279.0,60268.0,0.24974609]
[1728602805198,1.06545958,60279.0,60268.0,0.24974609]
[1728602805658,1.06845958,60279.0,60268.0,0.24974609]
[1728602807617,0.80681526,60279.0,60268.0,0.24974609]
[1728602807867,0.80681526,60279.0,60277.0,0.0762]
[1728602808743,0.80681526,60279.0,60268.0,0.24974609]
[1728602808744,0.80681526,60279.0,60272.0,0.1953]
[1728602811900,0.81923216,60279.0,60272.0,0.1953]
[1728602812125,0.81123216,60279.0,60272.0,0.1953]
[1728602812339,0.81823216,60279.0,60272.0,0.1953]
[1728602812800,0.81523216,60279.0,60272.0,0.1953]
[1728602813029,0.80823216,60279.0,60272.0,0.1953]
[1728602813260,0.81123216,60279.0,60272.0,0.1953]
[1728602813483,0.81523216,60279.0,60272.0,0.1953]
[1728602813694,0.81823216,60279.0,60272.0,0.1953]
[1728602813911,0.80581526,60279.0,60272.0,0.1953]
[1728602815410,0.6153493,60279.0,60272.0,0.1953]
[1728602817190,0.6133493,60279.0,60272.0,0.1953]
[1728602817615,0.66287702,60279.0,60272.0,0.1953]
[1728602818591,0.6133493,60279.0,60272.0,0.1953]
[1728602819443,0.68764088,60279.0,60272.0,0.1953]
[1728602820547,0.89566514,60279.0,60272.0,0.1953]
[1728602821221,0.86344001,60279.0,60272.0,0.1953]
[1728602822304,0.5808893,60279.0,60272.0,0.1953]
[1728602822530,0.9884941,60279.0,60272.0,0.1953]
[1728602822743,0.70590773,60279.0,60272.0,0.1953]
[1728602823386,0.88921173,60279.0,60272.0,0.1953]
[1728602824506,1.0133246,60279.0,60272.0,0.1953]
[1728602824945,1.0153246,60279.0,60272.0,0.1953]
[1728602825396,0.89121173,60279.0,60272.0,0.1953]
[1728602827109,1.01623016,60279.0,60272.0,0.1953]
[1728602827714,0.88921173,60279.0,60272.0,0.1953]
[1728602827912,1.01339732,60279.0,60272.0,0.1953]
[1728602828114,0.60629498,60279.0,60278.0,0.180232]
[1728602828417,0.83065813,60279.0,60278.0,0.180232]
[1728602828631,0.83067138,60279.0,60278.0,0.180232]
[1728602829753,0.73131341,60279.0,60278.0,0.180232]
[1728602829977,0.62253877,60279.0,60278.0,0.180232]
[1728602830193,0.54800941,60279.0,60278.0,0.180232]
[1728602830411,0.62253877,60279.0,60278.0,0.180232]
[1728602831305,0.54800941,60279.0,60278.0,0.180232]
[1728602831517,0.83082746,60279.0,60278.0,0.180232]
[1728602832599,0.73145486,60279.0,60278.0,0.180232]
[1728602833483,0.73227086,60279.0,60278.0,0.180232]
[1728602834135,1.05173199,60279.0,60278.0,0.001632]
[1728602834350,1.20066744,60279.0,60278.0,0.001632]
[1728602834593,1.24910175,60279.0,60278.0,0.001632]
[1728602834839,1.50603228,60279.0,60278.0,0.001632]
[1728602835099,1.50639988,60279.0,60278.0,0.001632]
[1728602835353,1.35723206,60279.0,60278.0,0.001632]
[1728602835599,1.44723206,60279.0,60278.0,0.001632]
[1728602835873,1.19026719,60279.0,60278.0,0.001632]
[1728602836151,1.44723206,60279.0,60278.0,0.001632]
[1728602836375,1.44023206,60279.0,60278.0,0.001632]
[1728602836623,1.44723206,60279.0,60278.0,0.001632]
[1728602837107,1.45423206,60279.0,60278.0,0.002632]
[1728602837592,1.45423206,60279.0,60272.0,0.015]
[1728602837593,0.27432,60273.0,60272.0,0.015]
[1728602837872,0.27432,60273.0,60261.0,0.0762]
[1728602837873,0.002,60270.0,60261.0,0.0762]
[1728602838110,0.002,60270.0,60259.0,0.0993]
[1728602838111,0.42237886,60264.0,60263.0,0.24974609]
[1728602838372,0.7752345,60264.0,60263.0,0.24974609]
[1728602838605,0.149345,60263.0,60257.0,0.0762]
[1728602838832,0.50220064,60263.0,60257.0,0.0762]
[1728602839296,0.51174786,60263.0,60257.0,0.0762]
[1728602839882,0.51974786,60263.0,60257.0,0.32594609]
[1728602840105,0.68919056,60263.0,60257.0,0.32594609]
[1728602840580,0.79219056,60263.0,60257.0,0.32594609]
[1728602841768,0.81519056,60263.0,60257.0,0.0762]
[1728602842010,0.81519056,60263.0,60252.0,0.0803]
[1728602842238,0.81619056,60263.0,60252.0,0.0803]
[1728602842492,0.81719056,60263.0,60252.0,0.0803]
[1728602843210,0.81519056,60263.0,60252.0,0.0803]
[1728602844166,0.81519056,60263.0,60250.0,0.005477]
[1728602844167,1.12225867,60263.0,60250.0,0.005477]
[1728602844422,1.07392391,60263.0,60250.0,0.005477]
[1728602844662,0.81719056,60263.0,60250.0,0.005477]
[1728602844903,1.06585995,60263.0,60250.0,0.005477]
[1728602845135,0.81719056,60263.0,60250.0,0.005477]
[1728602845358,0.81419056,60263.0,60250.0,0.005477]
[1728602845572,0.80919056,60263.0,60250.0,0.005477]
[1728602845789,0.80619056,60263.0,60250.0,0.005477]
[1728602846065,0.82019056,60263.0,60250.0,0.005477]
[1728602846312,1.23877354,60263.0,60250.0,0.005477]
[1728602846568,0.83319056,60263.0,60250.0,0.005477]
[1728602847255,0.98212445,60263.0,60250.0,0.005477]
[1728602847468,0.83319056,60263.0,60250.0,0.005477]
[1728602848589,0.83286995,60263.0,60250.0,0.005477]
[1728602850030,0.83282266,60263.0,60250.0,0.005477]
[1728602850246,0.98169149,60263.0,60250.0,0.005477]
[1728602850481,0.83282266,60263.0,60250.0,0.005477]
[1728602852850,1.00752266,60263.0,60250.0,0.005477]
[1728602853032,0.82434422,60263.0,60250.0,0.005477]
[1728602853269,1.00742506,60263.0,60250.0,0.005477]
[1728602853480,0.83272506,60263.0,60254.0,0.0966]
[1728602860536,0.9578539,60263.0,60254.0,0.0966]
[1728602861571,0.83272506,60263.0,60257.0,0.0781]
[1728602862404,0.83260499,60263.0,60257.0,0.0781]
[1728602862826,1.00730499,60263.0,60257.0,0.0781]
[1728602864553,0.83060499,60263.0,60257.0,0.0781]
[1728602864790,1.0548614,60263.0,60257.0,0.0781]
[1728602865010,0.60333036,60263.0,60257.0,0.0781]
[1728602865288,0.60533036,60263.0,60257.0,0.0781]
[1728602865519,0.78830061,60263.0,60257.0,0.0781]
[1728602867079,0.78830828,60263.0,60257.0,0.0781]
[1728602867543,0.88744552,60263.0,60257.0,0.0781]
[1728602868503,1.05688822,60263.0,60257.0,0.0781]
[1728602868960,1.1300315,60263.0,60257.0,0.0781]
[1728602869431,1.00610995,60263.0,60257.0,0.0781]
[1728602871742,1.00620759,60263.0,60257.0,0.0781]
[1728602875594,0.83676489,60263.0,60257.0,0.0781]
[1728602877436,0.98555011,60263.0,60257.0,0.0781]
[1728602878257,0.70963605,60263.0,60262.0,0.098532]
[1728602878552,0.98355011,60263.0,60262.0,0.178832]
[1728602878800,1.15299281,60263.0,60262.0,0.178832]
[1728602879511,1.00420759,60263.0,60262.0,0.178832]
[1728602880683,1.00467011,60263.0,60262.0,0.178832]
[1728602880904,0.73019627,60263.0,60262.0,0.178832]
[1728602881148,0.76181705,60263.0,60262.0,0.178832]
[1728602881365,0.3195159,60263.0,60262.0,0.328179]
[1728602881612,0.31961067,60263.0,60262.0,0.328179]
[1728602881836,0.28073259,60263.0,60262.0,0.328179]
[1728602882058,0.27773259,60263.0,60262.0,0.328179]
[1728602882273,0.27773259,60263.0,60262.0,0.329179]
[1728602882542,0.24287069,60263.0,60262.0,0.328179]
[1728602882766,0.19314019,60263.0,60262.0,0.328179]
[1728602882989,0.19614019,60263.0,60262.0,0.328179]
[1728602883437,0.24587069,60263.0,60262.0,0.328179]
[1728602883670,0.19614019,60263.0,60262.0,0.328179]
[1728602884135,0.19614019,60263.0,60262.0,0.329179]
[1728602886978,0.01254722,60263.0,60262.0,0.329179]
[1728602887435,0.003,60263.0,60262.0,0.329179]
[1728602887898,0.24974609,60271.0,60262.0,0.002632]
[1728602888151,0.24974609,60271.0,60267.0,0.298668]
[1728602888392,0.24974609,60271.0,60262.0,0.002632]
[1728602888393,0.00954442,60270.0,60269.0,0.14933]
[1728602888870,0.000816,60272.0,60271.0,0.1683]
[1728602889093,0.000816,60272.0,60271.0,0.317625]
[1728602889314,0.000816,60272.0,60271.0,0.1683]
[1728602889766,0.100816,60272.0,60271.0,0.1683]
[1728602890236,0.250139,60272.0,60271.0,0.1683]
[1728602891160,0.004816,60272.0,60271.0,0.1683]
[1728602898492,0.000816,60272.0,60271.0,0.1683]
[1728602898914,0.004816,60272.0,60271.0,0.1683]
[1728602899352,0.004816,60272.0,60271.0,0.317625]
[1728602900029,0.000816,60272.0,60271.0,0.317625]
[1728602900435,0.004816,60272.0,60271.0,0.317625]
[1728602900876,0.000816,60272.0,60271.0,0.317625]
[1728602901870,0.001816,60272.0,60271.0,0.322625]
[1728602906051,0.001816,60272.0,60271.0,0.4919343]
[1728602906739,0.000816,60272.0,60271.0,0.4869343]
[1728602906965,0.000816,60272.0,60271.0,0.4939343]
[1728602906966,0.001816,60272.0,60271.0,0.4939343]
[1728602907195,0.000816,60279.0,60278.0,0.329808]
[1728602907423,0.000816,60279.0,60278.0,0.62924614]
[1728602908083,0.000816,60279.0,60278.0,0.64670132]
[1728602909192,0.001816,60279.0,60278.0,0.64970132]
[1728602909847,0.001816,60279.0,60278.0,0.64770132]
[1728602910116,0.002816,60279.0,60278.0,0.66170132]
[1728602910319,0.000816,60279.0,60278.0,0.64470132]
[1728602910785,0.002816,60279.0,60278.0,0.65970132]
[1728602911023,0.001816,60279.0,60278.0,0.64570132]
[1728602911251,0.001816,60279.0,60278.0,0.65870132]
[1728602911501,0.002816,60279.0,60278.0,0.65970132]
[1728602912248,0.002816,60279.0,60278.0,1.15970132]
[1728602912753,0.002816,60279.0,60278.0,1.14424614]
[1728602912993,0.002816,60279.0,60278.0,1.15970132]
[1728602914218,0.002816,60279.0,60278.0,1.14424614]
[1728602914473,0.002816,60279.0,60278.0,1.15968201]
[1728602914719,0.002816,60279.0,60278.0,1.16168201]
[1728602915448,0.002816,60279.0,60278.0,1.25968201]
[1728602916158,0.002816,60279.0,60278.0,1.25978201]
[1728602917416,0.002816,60279.0,60278.0,1.26178201]
[1728602917660,0.002816,60279.0,60278.0,1.26177668]
[1728602918538,0.002816,60279.0,60278.0,1.25977668]
[1728602918750,0.002816,60279.0,60278.0,1.26177668]
[1728602919170,0.002816,60279.0,60278.0,1.25977668]
[1728602921623,0.002816,60279.0,60278.0,1.26177668]
[1728602924477,0.002816,60279.0,60278.0,1.24634614]
[1728602924696,0.002816,60279.0,60278.0,1.26178398]
[1728602926982,0.002816,60279.0,60278.0,1.25978398]
[1728602927390,0.002816,60279.0,60278.0,1.26178398]
[1728602928041,0.002816,60279.0,60278.0,1.26179715]
[1728602934616,0.002816,60279.0,60278.0,1.26183883]
[1728602935185,0.002816,60279.0,60278.0,1.25983883]
[1728602940414,0.000817,60285.0,60284.0,0.154293]
[1728602940638,0.24974609,60293.0,60284.0,0.86245267]
[1728602940860,0.000816,60297.0,60296.0,0.149263]
[1728602941102,0.000816,60297.0,60296.0,0.29320111]
[1728602941527,0.000816,60297.0,60296.0,0.27770842]
[1728602942347,0.001816,60297.0,60296.0,0.28970842]
[1728602942752,0.002816,60297.0,60296.0,0.29070842]
[1728602943231,0.002816,60297.0,60296.0,0.79070842]
[1728602943432,0.002816,60297.0,60296.0,0.78739184]
[1728602944609,0.002816,60297.0,60296.0,0.662263]
[1728602951924,0.002816,60297.0,60296.0,0.513]
[1728602952148,0.175016,60297.0,60296.0,0.513]
[1728602952381,0.18467634,60297.0,60296.0,0.513]
[1728602952813,0.18367634,60297.0,60296.0,0.512]
[1728602953256,0.18367634,60297.0,60296.0,0.515]
[1728602953676,0.18367634,60297.0,60296.0,0.512]
[1728602953883,0.19821473,60297.0,60296.0,0.5]
[1728602954087,0.19821473,60297.0,60296.0,0.503]
[1728602954795,0.19921473,60297.0,60296.0,0.503]
[1728602956939,0.34847573,60297.0,60296.0,0.503]
[1728602957595,0.33293734,60297.0,60296.0,0.503]
[1728602957813,0.19921215,60297.0,60296.0,0.503]
[1728602958244,0.34847315,60297.0,60296.0,0.503]
[1728602958468,0.19821215,60297.0,60296.0,0.5]
[1728602958911,0.35147315,60297.0,60296.0,0.5]
[1728602959109,0.62078245,60297.0,60296.0,0.5]
[1728602959318,0.9037526,60297.0,60296.0,0.5]
[1728602959753,0.80431951,60297.0,60296.0,0.5]
[1728602960387,0.90374436,60297.0,60296.0,0.5]
[1728602961223,0.90373991,60297.0,60296.0,0.5]
[1728602964425,0.620778,60297.0,60296.0,0.5]
[1728602965096,0.471517,60297.0,60289.0,0.149279]
[1728602965267,0.12512884,60294.0,60289.0,0.149279]
[1728602965471,0.12512884,60294.0,60285.0,0.54832309]
[1728602965472,0.01553136,60293.0,60292.0,0.39901909]
[1728602965671,0.01553136,60293.0,60292.0,0.149273]
[1728602965672,0.02518868,60293.0,60292.0,0.149273]
[1728602966189,0.01553136,60293.0,60292.0,0.149273]
[1728602967727,0.01551941,60293.0,60292.0,0.149273]
[1728602968124,0.01651941,60293.0,60292.0,0.161273]
[1728602968482,0.01651941,60293.0,60292.0,0.242573]
[1728602974360,0.01652506,60293.0,60292.0,0.242573]
[1728602977932,0.01652506,60293.0,60292.0,0.161273]
[1728602978149,0.01652506,60293.0,60292.0,0.512]
[1728602978150,0.3129539,60293.0,60292.0,0.512]
[1728602978379,0.47187069,60293.0,60292.0,0.512]
[1728602978812,0.69086028,60293.0,60292.0,0.512]
[1728602979919,1.33298464,60293.0,60292.0,0.512]
[1728602980161,1.23362406,60293.0,60292.0,0.512]
[1728602980383,1.23362406,60293.0,60292.0,0.508]
[1728602980607,1.12074203,60293.0,60292.0,0.512]
[1728602980822,1.11974203,60293.0,60292.0,0.504]
[1728602981045,1.12074203,60293.0,60292.0,0.5]
[1728602981261,0.95886003,60293.0,60292.0,0.5]
[1728602981503,1.09404514,60293.0,60292.0,0.001]
[1728602981737,1.10204514,60293.0,60292.0,0.002]
[1728602981949,1.10204514,60293.0,60285.0,0.001632]
[1728602981950,0.1,60289.0,60285.0,0.001632]
[1728602982157,0.19994868,60288.0,60285.0,0.001632]
[1728602982382,0.01552506,60287.0,60285.0,0.001632]
[1728602982597,0.01552506,60286.0,60285.0,0.001632]
[1728602982833,0.02514404,60286.0,60285.0,0.001632]
[1728602983698,0.17443204,60286.0,60285.0,0.001632]
[1728602984386,0.15890698,60286.0,60285.0,0.003632]
[1728602984608,0.15890698,60286.0,60285.0,0.001632]
[1728602984740,0.15890698,60286.0,60285.0,0.003632]
[1728602984941,0.16090698,60286.0,60285.0,0.003632]
[1728602989299,0.01161898,60286.0,60285.0,0.003632]
[1728602990167,0.02713372,60286.0,60285.0,0.003632]
[1728602990376,0.34573102,60286.0,60285.0,0.003632]
[1728602990601,0.33021628,60286.0,60285.0,0.003632]
[1728602991029,0.19644138,60286.0,60285.0,0.003632]
[1728602994133,0.19643747,60286.0,60285.0,0.003632]
[1728602994376,0.19725347,60286.0,60285.0,0.003632]
[1728602994804,0.19725284,60286.0,60285.0,0.003632]
[1728602997279,0.02794354,60286.0,60285.0,0.003632]
[1728603000265,0.02794354,60286.0,60285.0,0.152922]
[1728603000725,0.02794707,60286.0,60285.0,0.152922]
[1728603003119,0.02795198,60286.0,60285.0,0.152922]
[1728603009449,0.02795198,60286.0,60285.0,0.003632]
[1728603009671,0.01243498,60286.0,60285.0,0.152922]
[1728603009877,0.02798131,60286.0,60285.0,0.152922]
[1728603015077,0.02798131,60286.0,60285.0,0.003632]
[1728603015305,0.02798131,60286.0,60285.0,0.152922]
[1728603015762,0.02798131,60286.0,60285.0,0.003632]
[1728603015986,0.02798131,60286.0,60285.0,0.152922]
[1728603018480,0.02798131,60286.0,60285.0,0.003632]
[1728603018947,0.02798131,60286.0,60285.0,0.152922]
[1728603021009,0.02798131,60286.0,60285.0,0.003632]
[1728603021475,0.02798131,60286.0,60285.0,0.152922]
[1728603022125,0.02798131,60286.0,60285.0,0.003632]
[1728603022947,0.02798131,60286.0,60285.0,0.152922]
[1728603023151,0.02798131,60286.0,60285.0,0.003632]
[1728603024639,0.02798131,60286.0,60285.0,0.152922]
[1728603024847,0.02798131,60286.0,60285.0,0.003632]
[1728603025055,0.02798131,60286.0,60285.0,0.152922]